Workbook

Sheet bond
B2: TAB: BOND PARAMETERS
B4: Bond terms
B6: General parameters
B7: Parameter | C7: Value | E7: Description
B8: T | C8: 10 | E8: Term to maturity
B9: dt | C9: 2 | E9: Time increment
B10: principal | C10: 100 | E10: Bond principal amount
B11: coupon-rate | C11: 0.05 | E11: Coupon / dividend rate
B12: coupon-frequency | C12: 1 | E12: Coupon payment frequency (measured in the # of tree periods)
B13: n | C13: =INT(C8/C9)+1 -> 6 | E13: Number of periods in the tree that measure the bond life
B16: Interest deferral
B17: Parameter | C17: Value | E17: Description
B18: interest deferral period | C18: 0 | E18: The latest period until the bond coupon payments are deferred
B19: is compounded | C19: 1 | E19: 1 if deferred interest is compounded and zero otherwise
B22: Bond amortization schedule
B23: Parameter | C23: Value | E23: Description
B24: 1 | C24: 0 | E24: % of bond amortization in period t=0
B25: 3 | C25: 0 | E25: % of bond amortization in period t=3
B26: 5 | C26: =1-SUM(C24:C25) -> 1 | E26: % of bond amortization at maturity
B28: amortization schedule | C28: =_xll.AC.data.map(B24:B26, C24:C26) -> java.util.LinkedHashMap@Sun, 24 Jun 2018 12:54:35:752..6954858995633968606 | E28: Bond amortization schedule
B31: Bond option parameters
B32: Parameter | C32: Value | E32: Description
B33: option | C33: call | E33: Option type
B36: Bond redemption premium / discount
B37: Parameter | C37: Value | E37: Description
B38: 1 | C38: 0.03 | E38: Bond redemption premium in period t=0
B39: 2 | C39: 0.02 | E39: Bond redemption premium in period t=3
B40: 3 | C40: 0.01 | E40: Bond redemption premium at maturity
B42: redemption premium | C42: =_xll.AC.data.map(B38:B40, C38:C40) -> java.util.LinkedHashMap@Sun, 24 Jun 2018 12:54:35:738..597428355098118818 | E42: Premium at which the bond is redeemed if option is exercised

Sheet inputs
B2: TAB: INTEREST RATE TREE PARAMETERS
B4: Interest rate tree and tree calculator parameters | G4: Transition probability functions
B6: General parameters | G6: Function arguments
B7: Parameter | C7: Value | E7: Description | G7: Parameter | H7: Value | J7: Description
B8: Input parameters | G8: Diffusion drift and volatility function arguments
B9: y0 | C9: =bond!C11 -> 0.05 | E9: Initial yield rate | G9: t | H9: 0 | J9: Time period
B10: µ | C10: 0 | E10: Drift parameter | G10: y | H10: 0 | J10: Process state action
B11: σ | C11: 0.0107 | E11: Standard deviation | G11: x | H11: 0 | J11: Process state
G12: mu | H12: =C10 -> 0 | J12: Diffusion drift parameter
B13: Derived parameters | G13: sigma | H13: =C11 -> 0.0107 | J13: Diffusion volatility parameter
B14: (µ - σ2/2) x dt | C14: =(C10 - C11*C11/2)*bond!C9 -> -0.00011449 | E14: Adjusted one-period drift parameter
B15: σ x √dt | C15: =C11 * SQRT(bond!C9) -> 0.01513208512 | E15: Size of upward / downward movement
B17: Tree parameters | G17: Transition probability functions
B18: Parameter | C18: Value | E18: Description | G18: Diffusion drift and volatility functions (used to construct transition probabilities function)
B19: States | G19: =_xll.AC.jmc.parse("tree-calc", G20, G9:H13) -> jkr.parser.lib.jmc.calculator.Calculator@Sun, 24 Jun 2018 12:54:38:608..1134433183018976852
B20: dx-down | C20: 4 | E20: Normalized downward change in state over dt period (xmin = E xT - ΣT x dxdown) | G20: 'mux' = 'mu'; 'sigmax' = 'sigma'; 'Fmu' = FX('mux', VARS('t', 'y', 'x')); 'Fsigma' = FX('sigmax', VARS('t', 'y', 'x'));
B21: dx-up | C21: 7 | E21: Normalized upward change in state over dt period (xmax = E xT + ΣT x dxup)
B22: X-min | C22: -0.3 | E22: Lower boundary on minimum state value
B23: X-max | C23: 0.3 | E23: Upper boundary on maximum state value
B24: X-count | C24: 13 | E24: Number of process discrete states {xt}
B25: iter-count | C25: 10 | E25: Number of iterations used to construct σ(T, x) - uniform set of states in period T
G26: Variable name | H26: Variable value | J26: Variable description
B27: Diffusion tree parameter | G27: Fmu | H27: =_xll.AC.jmc.getVars(G19, G27:G28) -> jkr.parser.lib.jmc.formula.objects.function.CodeFunctionX@Sun, 24 Jun 2018 12:54:38:707..8001981852497446155 | J27: Diffusion drift function object
G28: Fsigma | H28: jkr.parser.lib.jmc.formula.objects.function.CodeFunctionX@Sun, 24 Jun 2018 12:54:38:707..1245235422123900535 | J28: Diffusion dvolatility function object
B30: Calculator parameters | G30: Transition probability tree structure
B31: Parameter | C31: Value | E31: Description
B32: Calculator option parameters | G32: Movement direction | H32: ai | I32: pi | J32: Restrictions on the mapping coefficients
B33: option | C33: =bond!C33 -> call | E33: Evaluated option | G33: up | H33: =SQRT(3) -> 1.732050808 | I33: =1/6 -> 0.1666666667 | J33: Σ ai2 x pi = 1
B34: yield-min | C34: -0.01 | E34: Minimum yield bound in yield binary search estimation | G34: zero | H34: 0 | I34: =1-I33-I35 -> 0.6666666667 | J34: Σ pi = 1
B35: yield-max | C35: 0.2 | E35: Maximum yield bound in yield binary search estimation | G35: down | H35: =-H33 -> -1.732050808 | I35: =I33 -> 0.1666666667
B36: yield-iter | C36: 10 | E36: Maximum number of yield iterations
B37: npv-delta | C37: 0.1 | E37: Maximum difference between bond cash flow yield-based NPV and bond clean price | G37: Q tree structure | H37: =_xll.AC.data.map(H33:H35, I33:I35) -> java.util.LinkedHashMap@Sun, 24 Jun 2018 12:54:35:752..183204038153754872
B39: Calculator option executed methods
B40: value-option | E40: Estimate the bond bullet prices and prices in the presence of the option
B41: bond-yields | E41: Estimate the bond bullet yields and yields in the presence of the option
B43: Parameter objects
B44: Parameter | C44: Value | E44: Description
B45: Parameter mappings objects
B46: States mapping | C46: =_xll.AC.data.map(B20:B25, C20:C25) -> java.util.LinkedHashMap@Sun, 24 Jun 2018 12:54:35:739..1430619658721585294 | E46: State mapping object
B47: Calculator option parameter mapping | C47: =_xll.AC.data.map(B33:B37, C33:C37) -> java.util.LinkedHashMap@Sun, 24 Jun 2018 12:54:35:752..6027289853123179485 | E47: Calculator parameter mapping object
B48: Calculator option executed methods mapping | C48: =_xll.AC.data.list_x(B40:B41, 0, 1) -> java.util.ArrayList@Sun, 24 Jun 2018 12:54:35:739..6401836390831474856 | E48: Calculator option executed methods list object

Sheet tree
B2: TAB: INTEREST RATE TREE MODELING
B4: Controlled diffusion tree inputs and objects | E4: Controlled diffusion tree output
B6: Interest rate tree objects | E6: Tree states | O6: Tree state distribution
B8: Diffusion tree | H8: time period | R8: time period
B9: Parameter | C9: Value | E9: # | H9: 0 | I9: =H9+1 -> 1 | J9: =I9+1 -> 2 | K9: =J9+1 -> 3 | L9: 4 | M9: 5 | O9: # | R9: =H9 -> 0 | S9: 1 | T9: 2 | U9: 3 | V9: 4 | W9: 5
B10: T | C10: =bond!C8 -> 10 | E10: 1 | F10: state | G10: =_xll.AC.stats.markov.getTree(B20, B29) -> -0.09430133809 | H10: =_xll.AC.stats.markov.getTree(B20, B28) ->  | M10: -0.09430133809 | O10: =E10 -> 1 | P10: state | Q10: =IF(G10="", "", G10) -> -0.09430133809 | R10: =_xll.AC.stats.markov.getCalc(calc!B15, B31) ->  | W10: 5.315041642e-05 | Z10: stats
B11: dt | C11: =bond!C9 -> 2 | E11: =E10+1 -> 2 | G11: -0.06567056266 | L11: -0.06567056266 | M11: -0.06567056266 | O11: 2 | Q11: -0.06567056266 | V11: 0.0003805444016 | W11: 0.001371217844
B12: y0 | C12: =inputs!C9 -> 0.05 | E12: =E11+1 -> 3 | G12: -0.03703978723 | K12: -0.03703978723 | L12: -0.03703978723 | M12: -0.03703978723 | O12: 3 | Q12: -0.03703978723 | U12: 0.002724607846 | V12: 0.007854076171 | W12: 0.01441607113
B13: states | C13: =inputs!C46 -> java.util.LinkedHashMap@Sun, 24 Jun 2018 12:54:35:739..1430619658721585294 | E13: 4 | G13: -0.008409011799 | J13: -0.008409011799 | K13: -0.008409011799 | L13: -0.008409011799 | M13: -0.008409011799 | O13: 4 | Q13: -0.008409011799 | T13: 0.0195075473 | U13: 0.04217499482 | V13: 0.06230993874 | W13: 0.07849716849
B14: process-params | E14: 5 | G14: 0.02022176363 | I14: 0.02022176363 | J14: 0.02022176363 | K14: 0.02022176363 | L14: 0.02022176363 | M14: 0.02022176363 | O14: 5 | Q14: 0.02022176363 | S14: 0.1396694215 | T14: 0.2013086538 | U14: 0.2257868146 | V14: 0.232662535 | W14: 0.2313455474
B15: =inputs!G27 -> Fmu | C15: =inputs!H27 -> jkr.parser.lib.jmc.formula.objects.function.CodeFunctionX@Sun, 24 Jun 2018 12:54:38:707..8001981852497446155 | E15: 6 | G15: 0.04885253906 | H15: 0.04885253906 | I15: 0.04885253906 | J15: 0.04885253906 | K15: 0.04885253906 | L15: 0.04885253906 | M15: 0.04885253906 | O15: 6 | Q15: 0.04885253906 | R15: 1 | S15: 0.720661157 | T15: 0.5583675978 | U15: 0.4586271655 | V15: 0.3935858113 | W15: 0.3486336895
B16: =inputs!G28 -> Fsigma | C16: =inputs!H28 -> jkr.parser.lib.jmc.formula.objects.function.CodeFunctionX@Sun, 24 Jun 2018 12:54:38:707..1245235422123900535 | E16: 7 | G16: 0.07748331449 | I16: 0.07748331449 | J16: 0.07748331449 | K16: 0.07748331449 | L16: 0.07748331449 | M16: 0.07748331449 | O16: 7 | Q16: 0.07748331449 | S16: 0.1396694215 | T16: 0.2013086538 | U16: 0.2257868146 | V16: 0.232662535 | W16: 0.2313455474
B17: =inputs!G37 -> Q tree structure | C17: =inputs!H37 -> java.util.LinkedHashMap@Sun, 24 Jun 2018 12:54:35:752..183204038153754872 | E17: 8 | G17: 0.1061140899 | J17: 0.1061140899 | K17: 0.1061140899 | L17: 0.1061140899 | M17: 0.1061140899 | O17: 8 | Q17: 0.1061140899 | T17: 0.0195075473 | U17: 0.04217499482 | V17: 0.06230993874 | W17: 0.07849716849
B18: parameters | E18: 9 | G18: 0.1347448654 | K18: 0.1347448654 | L18: 0.1347448654 | M18: 0.1347448654 | O18: 9 | Q18: 0.1347448654 | U18: 0.002724607846 | V18: 0.007854076171 | W18: 0.01441607113
E19: 10 | G19: 0.1633756408 | L19: 0.1633756408 | M19: 0.1633756408 | O19: 10 | Q19: 0.1633756408 | V19: 0.0003805444016 | W19: 0.001371217844
B20: =_xll.AC.finance.srm.tree("SRM-tree", C10, C11, C12, C13, C14, C15, C16, C17, C18) -> jeconkr.finance.HW.Derivatives2003.lib.ch23_srm.ShortRateModel@Sun, 24 Jun 2018 13:30:40:441..4490819340299241869 | E20: 11 | G20: 0.1920064162 | M20: 0.1920064162 | O20: =E20 -> 11 | Q20: 0.1920064162 | W20: 5.315041642e-05
E21: 12 | G21: 0.2206371916 | O21: 12 | Q21: 0.2206371916
E22: 13 | G22: 0.2492679671 | O22: 13 | Q22: 0.2492679671
B24: Tree output parameters | E24: Transition probabilities | O24: Distribution of terminal states
B26: Tree keys: | C26: Description | E26: # | H26: 1 | I26: =H26+1 -> 2 | J26: 3 | K26: 4 | L26: 5 | M26: 6
B27: field | C27: Markov tree field | G27: ="t = " & C38 -> t = 2 | H27: xt
B28: state-value | C28: State values (as a tree) | G28: =_xll.AC.stats.markov.getTree(B20, B30, B46) ->  | H28: 0:-0.008 | I28: 0:0.02 | J28: 0:0.049 | K28: 0:0.077
B29: tree-states | C29: State values (as a list) | E29: 1 | F29: xt+1 | G29: 0:0.02 | J29: 0.1396694215
B30: Q | C30: Transition probabilities (as array for period t) | E30: =E29+1 -> 2 | G30: 0:0.049 | J30: 0.720661157 | K30: 0.1396694215
B31: P | C31: State probabilities (as a tree) | E31: 3 | G31: 0:0.077 | J31: 0.1396694215 | K31: 0.720661157
B32: path-stats | C32: Tree statistics (mean, stdev, quantiles) | E32: 4 | G32: 0:0.106 | K32: 0.1396694215
B33: Q-drift | C33: Transition probability drift parameter | E33: 5 | G33: 0:0.135
B34: Q-sigma | C34: Transition probability sigma parameter | E34: 6 | G34: 1:-0.001 | H34: 1 | I34: 1
E35: 7
B36: Calculator and tree parameter mapping | E36: 8
B37: key | C37: value | E37: 9
B38: t | C38: 2 | E38: 10
B39: path-avg | E39: 11
B40: path-stdev
B41: path-pct | C41: =_xll.AC.data.list_x(C42:C43, 1, 1) -> java.util.ArrayList@Sun, 24 Jun 2018 12:54:35:739..2661628237244309353 | O41: mean | Q41: =SUMPRODUCT(Q10:Q22, W10:W22) -> 0.04885253906
B42: Lower percentile | C42: 0.25 | O42: variance | Q42: =SUMPRODUCT(Q10:Q22, Q10:Q22, W10:W22) - Q41*Q41 -> 0.0011449
B43: Upper percentile | C43: 0.75 | O43: standard deviation | Q43: =SQRT(Q42) -> 0.03383637096
B46: =_xll.AC.data.map(B38:B41, C38:C41) -> java.util.LinkedHashMap@Sun, 24 Jun 2018 12:54:35:750..3412010573071285858 | C46: Calculator parameters mapping
Q59: =MIN(bond!C13, config!D11) -> 6

Sheet calc
B2: TAB: INTEREST RATE TREE CALCULATOR OUTPUT
B4: Interest rate tree output
B6: Interest rate tree calculator objects | E6: Bond value in the presence of the option (full value including accrued interest) | O6: Option exercise action function
B8: Markov tree calculator | H8: time period | R8: time period
B9: Parameter | C9: Value | E9: # | H9: 0 | I9: =H9+1 -> 1 | J9: =I9+1 -> 2 | K9: =J9+1 -> 3 | L9: 4 | M9: 5 | O9: # | R9: 0 | S9: =R9+1 -> 1 | T9: =S9+1 -> 2 | U9: =T9+1 -> 3 | V9: =U9+1 -> 4 | W9: =V9+1 -> 5
B10: Interest rate tree model | C10: =tree!B20 -> jeconkr.finance.HW.Derivatives2003.lib.ch23_srm.ShortRateModel@Sun, 24 Jun 2018 13:30:40:441..4490819340299241869 | E10: 1 | F10: state | G10: =IF(tree!G10="", "", tree!G10) -> -0.09430133809 | H10: =_xll.AC.finance.srm.get(B15, B28) ->  | M10: -110 | O10: 1 | P10: state | Q10: =IF(G10="", "", G10) -> -0.09430133809 | R10: =_xll.AC.stats.markovctrl.getCalc(B15, B32) ->  | W10: 0
B11: bond cash flows | C11: =cf!B20 -> java.util.LinkedHashMap@Sun, 24 Jun 2018 13:22:19:205..2304287379002258535 | E11: =E10+1 -> 2 | G11: =IF(tree!G11="", "", tree!G11) -> -0.06567056266 | L11: -111 | M11: -110 | O11: =O10+1 -> 2 | Q11: =IF(G11="", "", G11) -> -0.06567056266 | V11: 1 | W11: 0
B12: parameters | C12: =inputs!C47 -> java.util.LinkedHashMap@Sun, 24 Jun 2018 12:54:35:752..6027289853123179485 | E12: =E11+1 -> 3 | G12: =IF(tree!G12="", "", tree!G12) -> -0.03703978723 | K12: -111 | L12: -111 | M12: -110 | O12: =O11+1 -> 3 | Q12: -0.03703978723 | U12: 1 | V12: 1 | W12: 0
B13: executed methods | C13: =inputs!C48 -> java.util.ArrayList@Sun, 24 Jun 2018 12:54:35:739..6401836390831474856 | E13: 4 | G13: =IF(tree!G13="", "", tree!G13) -> -0.008409011799 | J13: -112 | K13: -111 | L13: -111 | M13: -110 | O13: 4 | Q13: -0.008409011799 | T13: 1 | U13: 1 | V13: 1 | W13: 0
E14: 5 | G14: =IF(tree!G14="", "", tree!G14) -> 0.02022176363 | I14: -113 | J14: -112 | K14: -111 | L14: -111 | M14: -110 | O14: 5 | Q14: 0.02022176363 | S14: 1 | T14: 1 | U14: 1 | V14: 1 | W14: 0
B15: =_xll.AC.finance.srm.calc("SRM-calc", C10, C11, , C12, C13) -> jeconkr.finance.HW.Derivatives2003.lib.ch23_srm.calculator.CalculatorSRM@Sun, 24 Jun 2018 13:30:40:445..7132322343992425990 | E15: 6 | G15: =IF(tree!G15="", "", tree!G15) -> 0.04885253906 | H15: -95.66731005 | I15: -106.7370942 | J15: -107.8751624 | K15: -108.9975661 | L15: -109.7607967 | M15: -110 | O15: 6 | Q15: 0.04885253906 | R15: 0 | S15: 0 | T15: 0 | U15: 0 | V15: 0 | W15: 0
E16: 7 | G16: =IF(tree!G16="", "", tree!G16) -> 0.07748331449 | I16: -91.51928399 | J16: -95.0926656 | K16: -99.28594802 | L16: -104.2088133 | M16: -110 | O16: 7 | Q16: 0.07748331449 | S16: 0 | T16: 0 | U16: 0 | V16: 0 | W16: 0
E17: 8 | G17: =IF(tree!G17="", "", tree!G17) -> 0.1061140899 | J17: -82.96026756 | K17: -90.07454496 | L17: -98.96581421 | M17: -110 | O17: 8 | Q17: 0.1061140899 | T17: 0 | U17: 0 | V17: 0 | W17: 0
E18: 9 | G18: =IF(tree!G18="", "", tree!G18) -> 0.1347448654 | K18: -81.83484556 | L18: -94.01460351 | M18: -110 | O18: 9 | Q18: 0.1347448654 | U18: 0 | V18: 0 | W18: 0
E19: 10 | G19: =IF(tree!G19="", "", tree!G19) -> 0.1633756408 | L19: -89.33894234 | M19: -110 | O19: 10 | Q19: 0.1633756408 | V19: 0 | W19: 0
E20: 11 | G20: =IF(tree!G20="", "", tree!G20) -> 0.1920064162 | M20: -110 | O20: 11 | Q20: 0.1920064162 | W20: 0
E21: 12 | G21: =IF(tree!G21="", "", tree!G21) -> 0.2206371916 | O21: 12 | Q21: 0.2206371916
E22: 13 | G22: =IF(tree!G22="", "", tree!G22) -> 0.2492679671 | O22: 13 | Q22: 0.2492679671
B24: Tree calculator output parameters | E24: Bond bullet value (full value including accrued interest) | O24: Option value
B26: Tree keys: | C26: Description | H26: =H8 -> time period | R26: =H26 -> time period
B27: field | C27: Markov tree calculator field | E27: =E9 -> # | H27: =H9 -> 0 | I27: =I9 -> 1 | J27: 2 | K27: 3 | L27: 4 | M27: 5 | O27: =E27 -> # | R27: =H27 -> 0 | S27: =I27 -> 1 | T27: 2 | U27: 3 | V27: 4 | W27: 5
B28: bond-price | C28: The full (dirty) price of the bond | E28: =E10 -> 1 | F28: =F10 -> state | G28: =G10 -> -0.09430133809 | H28: =_xll.AC.finance.srm.get(B15, B29) ->  | M28: -110 | O28: =E28 -> 1 | P28: =F28 -> state | Q28: =G28 -> -0.09430133809 | R28: =IF(H10="", "", H10-H28) ->  | S28: =IF(I10="", "", I10-I28) ->  | W28: 0
B29: bond-price-bullet | C29: The full (dirty) bullet price of the bond (option-adjusted) | E29: =E11 -> 2 | G29: =G11 -> -0.06567056266 | L29: -135.4392391 | M29: -110 | O29: =E29 -> 2 | Q29: =G29 -> -0.06567056266 | R29: =IF(H11="", "", H11-H29) ->  | V29: 24.43923915 | W29: 0
B30: bond-ytm | C30: The bond yield to maturity (based on bond clean price) | E30: 3 | G30: -0.03703978723 | K30: -148.3940805 | L30: -128.4581745 | M30: -110 | O30: 3 | Q30: -0.03703978723 | R30: =IF(H12="", "", H12-H30) ->  | U30: 37.39408046 | V30: 17.45817447 | W30: 0
B31: bond-ytm-bullet | C31: The bond bullet yield to maturity | E31: 4 | G31: -0.008409011799 | J31: -146.4740182 | K31: -133.9846104 | L31: -121.8656267 | M31: -110 | O31: 4 | Q31: -0.008409011799 | R31: =IF(H13="", "", H13-H31) ->  | T31: 34.47401825 | U31: 22.9846104 | V31: 10.8656267 | W31: 0
B32: mode-action | C32: Optimal mode action estimated for the tree | E32: 5 | G32: 0.02022176363 | I32: -131.8802529 | J32: -126.4857465 | K32: -121.102872 | L32: -115.6399737 | M32: -110 | O32: 5 | Q32: 0.02022176363 | R32: =IF(H14="", "", H14-H32) ->  | S32: 18.88025287 | T32: 14.48574647 | U32: 10.10287202 | V32: 4.639973706 | W32: 0
B33: objective | C33: Objective function defined on tree states | E33: 6 | G33: 0.04885253906 | H33: -100.0053548 | I33: -109.6683446 | J33: -109.5390115 | K33: -109.5853045 | L33: -109.7607967 | M33: -110 | O33: 6 | Q33: 0.04885253906 | R33: =IF(H15="", "", H15-H33) -> 4.338044727 | S33: 2.931250353 | T33: 1.663849145 | U33: 0.5877384151 | V33: 0 | W33: 0
B34: discount | C34: Discount function defined on tree states | E34: 7 | G34: 0.07748331449 | I34: -91.76170442 | J34: -95.16297028 | K34: -99.28594802 | L34: -104.2088133 | M34: -110 | O34: 7 | Q34: 0.07748331449 | R34: =IF(H16="", "", H16-H34) ->  | S34: 0.2424204328 | T34: 0.07030468391 | U34: 0 | V34: 0 | W34: 0
E35: 8 | G35: 0.1061140899 | J35: -82.96026756 | K35: -90.07454496 | L35: -98.96581421 | M35: -110 | O35: 8 | Q35: 0.1061140899 | R35: =IF(H17="", "", H17-H35) ->  | T35: 0 | U35: 0 | V35: 0 | W35: 0
E36: 9 | G36: 0.1347448654 | K36: -81.83484556 | L36: -94.01460351 | M36: -110 | O36: 9 | Q36: 0.1347448654 | R36: =IF(H18="", "", H18-H36) ->  | U36: 0 | V36: 0 | W36: 0
E37: 10 | G37: 0.1633756408 | L37: -89.33894234 | M37: -110 | O37: 10 | Q37: 0.1633756408 | R37: =IF(H19="", "", H19-H37) ->  | V37: 0 | W37: 0
E38: 11 | G38: 0.1920064162 | M38: -110 | O38: 11 | Q38: 0.1920064162 | R38: =IF(H20="", "", H20-H38) ->  | W38: 0
E39: 12 | G39: 0.2206371916 | O39: 12 | Q39: 0.2206371916 | R39: =IF(H21="", "", H21-H39) -> 
E40: 13 | G40: 0.2492679671 | O40: 13 | Q40: 0.2492679671 | R40: =IF(H22="", "", H22-H40) -> 
E42: Objective function (bond cash flow or bond redemption price) | O42: Discount function
H44: time period | R44: time period
E45: # | H45: 0 | I45: =H45+1 -> 1 | J45: =I45+1 -> 2 | K45: =J45+1 -> 3 | L45: 4 | M45: 5 | O45: # | R45: 0 | S45: =R45+1 -> 1 | T45: =S45+1 -> 2 | U45: =T45+1 -> 3 | V45: =U45+1 -> 4 | W45: =V45+1 -> 5
E46: 1 | F46: state | G46: =IF(G10="", "", G10) -> -0.09430133809 | H46: =_xll.AC.stats.markov.getCalc(B15, B33) ->  | M46: -220 | O46: 1 | P46: state | Q46: =IF(G10="", "", G10) -> -0.09430133809 | R46: =_xll.AC.stats.markov.getCalc(B15, B34) -> 
E47: =E46+1 -> 2 | G47: -0.06567056266 | L47: -111 | M47: -220 | O47: =O46+1 -> 2 | Q47: -0.06567056266 | V47: 1.14035672
E48: =E47+1 -> 3 | G48: -0.03703978723 | K48: -111 | L48: -111 | M48: -220 | O48: =O47+1 -> 3 | Q48: -0.03703978723 | U48: 1.076892495 | V48: 1.076892495
E49: 4 | G49: -0.008409011799 | J49: -112 | K49: -111 | L49: -111 | M49: -220 | O49: 4 | Q49: -0.008409011799 | T49: 1.016960243 | U49: 1.016960243 | V49: 1.016960243
E50: 5 | G50: 0.02022176363 | I50: -113 | J50: -112 | K50: -111 | L50: -111 | M50: -220 | O50: 5 | Q50: 0.02022176363 | S50: 0.9603633973 | T50: 0.9603633973 | U50: 0.9603633973 | V50: 0.9603633973
E51: 6 | G51: 0.04885253906 | H51: 0 | I51: -10 | J51: -10 | K51: -10 | L51: -10 | M51: -220 | O51: 6 | Q51: 0.04885253906 | R51: 0.9069163338 | S51: 0.9069163338 | T51: 0.9069163338 | U51: 0.9069163338 | V51: 0.9069163338
E52: 7 | G52: 0.07748331449 | I52: -10 | J52: -10 | K52: -10 | L52: -10 | M52: -220 | O52: 7 | Q52: 0.07748331449 | S52: 0.8564437574 | T52: 0.8564437574 | U52: 0.8564437574 | V52: 0.8564437574
E53: 8 | G53: 0.1061140899 | J53: -10 | K53: -10 | L53: -10 | M53: -220 | O53: 8 | Q53: 0.1061140899 | T53: 0.8087801292 | U53: 0.8087801292 | V53: 0.8087801292
E54: 9 | G54: 0.1347448654 | K54: -10 | L54: -10 | M54: -220 | O54: 9 | Q54: 0.1347448654 | U54: 0.7637691228 | V54: 0.7637691228
E55: 10 | G55: 0.1633756408 | L55: -10 | M55: -220 | O55: 10 | Q55: 0.1633756408 | V55: 0.7212631121
E56: 11 | G56: 0.1920064162 | M56: -220 | O56: 11 | Q56: 0.1920064162
E57: 12 | G57: 0.2206371916 | O57: 12 | Q57: 0.2206371916
E58: 13 | G58: 0.2492679671 | O58: 13 | Q58: 0.2492679671

Sheet yield
B2: TAB: BOND YIELD RATES AND OPTION PREMIUM
B4: Parameters | E4: Bond value in the presence of the option | O4: Option annual premium
B6: =bond!B10 -> principal | C6: =bond!C10 -> 100 | H6: time period | R6: time period
B7: =bond!B8 -> T | C7: =bond!C8 -> 10 | E7: # | H7: 0 | I7: =H7+1 -> 1 | J7: =I7+1 -> 2 | K7: =J7+1 -> 3 | L7: 4 | M7: 5 | O7: # | R7: 0 | S7: =R7+1 -> 1 | T7: =S7+1 -> 2 | U7: =T7+1 -> 3 | V7: =U7+1 -> 4 | W7: =V7+1 -> 5
B8: =bond!B11 -> coupon-rate | C8: =bond!C11 -> 0.05 | E8: 1 | F8: state | G8: =calc!G10 -> -0.09430133809 | H8: =_xll.AC.finance.srm.get(calc!B15, calc!B30) ->  | O8: 1 | P8: state | Q8: =calc!Q10 -> -0.09430133809 | R8: =IF(H8="", "", H8-H26) ->  | S8: =IF(I8="", "", I8-I26) -> 
B9: =bond!B12 -> coupon-frequency | C9: =INT((1/bond!C9)/bond!C12) -> 0 | E9: =E8+1 -> 2 | G9: =calc!G11 -> -0.06567056266 | L9: 0.04457763672 | O9: =O8+1 -> 2 | Q9: =calc!Q11 -> -0.06567056266 | R9: =IF(H9="", "", H9-H27) ->  | V9: 0.04952636719
B10: dt | C10: =bond!C9 -> 2 | E10: =E9+1 -> 3 | G10: =calc!G12 -> -0.03703978723 | K10: 0.04714111328 | L10: 0.04457763672 | O10: =O9+1 -> 3 | Q10: =calc!Q12 -> -0.03703978723 | R10: =IF(H10="", "", H10-H28) ->  | U10: 0.05208984375 | V10: 0.04952636719
E11: 4 | G11: =calc!G13 -> -0.008409011799 | J11: 0.04601318359 | K11: 0.04714111328 | L11: 0.04457763672 | O11: 4 | Q11: =calc!Q13 -> -0.008409011799 | R11: =IF(H11="", "", H11-H29) ->  | T11: 0.05096191406 | U11: 0.05208984375 | V11: 0.04952636719
E12: 5 | G12: =calc!G14 -> 0.02022176363 | I12: 0.04539794922 | J12: 0.04601318359 | K12: 0.04714111328 | L12: 0.04457763672 | O12: 5 | Q12: =calc!Q14 -> 0.02022176363 | R12: =IF(H12="", "", H12-H30) ->  | S12: 0.02553222656 | T12: 0.02573730469 | U12: 0.02666015625 | V12: 0.02389160156
E13: 6 | G13: =calc!G15 -> 0.04885253906 | H13: 0.05585693359 | I13: 0.05524169922 | J13: 0.05431884766 | K13: 0.05288330078 | L13: 0.05134521484 | O13: 6 | Q13: =calc!Q15 -> 0.04885253906 | R13: =IF(H13="", "", H13-H31) -> 0.005844726562 | S13: 0.004716796875 | T13: 0.003383789063 | U13: 0.001640625 | V13: 0
E14: 7 | G14: =calc!G16 -> 0.07748331449 | I14: 0.08343994141 | J14: 0.08354248047 | K14: 0.08364501953 | L14: 0.08385009766 | O14: 7 | Q14: =calc!Q16 -> 0.07748331449 | R14: =IF(H14="", "", H14-H32) ->  | S14: 0.0005126953125 | T14: 0.0001025390625 | U14: 0 | V14: 0
E15: 8 | G15: =calc!G17 -> 0.1061140899 | J15: 0.09994873047 | K15: 0.09994873047 | L15: 0.09994873047 | O15: 8 | Q15: =calc!Q17 -> 0.1061140899 | R15: =IF(H15="", "", H15-H33) ->  | T15: 0 | U15: 0 | V15: 0
E16: 9 | G16: =calc!G18 -> 0.1347448654 | K16: 0.09994873047 | L16: 0.09994873047 | O16: 9 | Q16: =calc!Q18 -> 0.1347448654 | R16: =IF(H16="", "", H16-H34) ->  | U16: 0 | V16: 0
E17: 10 | G17: =calc!G19 -> 0.1633756408 | L17: 0.09994873047 | O17: 10 | Q17: =calc!Q19 -> 0.1633756408 | R17: =IF(H17="", "", H17-H35) ->  | V17: 0
E18: 11 | G18: =calc!G20 -> 0.1920064162 | O18: 11 | Q18: =calc!Q20 -> 0.1920064162 | R18: =IF(H18="", "", H18-H36) -> 
E19: 12 | G19: =calc!G21 -> 0.2206371916 | O19: 12 | Q19: =calc!Q21 -> 0.2206371916 | R19: =IF(H19="", "", H19-H37) -> 
E20: 13 | G20: =calc!G22 -> 0.2492679671 | O20: 13 | Q20: =calc!Q22 -> 0.2492679671 | R20: =IF(H20="", "", H20-H38) -> 
E22: Bond bullet value | O22: Option premium / discount term structure
H24: =H6 -> time period
E25: =E7 -> # | H25: =H7 -> 0 | I25: =I7 -> 1 | J25: 2 | K25: 3 | L25: 4 | M25: 5
E26: =E8 -> 1 | F26: =F8 -> state | G26: =G8 -> -0.09430133809 | H26: =_xll.AC.finance.srm.get(calc!B15, calc!B31) -> 
E27: =E9 -> 2 | G27: =G9 -> -0.06567056266 | L27: -0.004948730469
E28: 3 | G28: -0.03703978723 | K28: -0.004948730469 | L28: -0.004948730469
E29: 4 | G29: -0.008409011799 | J29: -0.004948730469 | K29: -0.004948730469 | L29: -0.004948730469
E30: 5 | G30: 0.02022176363 | I30: 0.01986572266 | J30: 0.02027587891 | K30: 0.02048095703 | L30: 0.02068603516
E31: 6 | G31: 0.04885253906 | H31: 0.05001220703 | I31: 0.05052490234 | J31: 0.05093505859 | K31: 0.05124267578 | L31: 0.05134521484
E32: 7 | G32: 0.07748331449 | I32: 0.08292724609 | J32: 0.08343994141 | K32: 0.08364501953 | L32: 0.08385009766
E33: 8 | G33: 0.1061140899 | J33: 0.09994873047 | K33: 0.09994873047 | L33: 0.09994873047
E34: 9 | G34: 0.1347448654 | K34: 0.09994873047 | L34: 0.09994873047
E35: 10 | G35: 0.1633756408 | L35: 0.09994873047
E36: 11 | G36: 0.1920064162
E37: 12 | G37: 0.2206371916
E38: 13 | G38: 0.2492679671

Sheet stats
B2: TAB: INTEREST TREE STATISTICS
B4: Parameters | E4: Interest rate tree statistics
B6: Interest rate tree | C6: =calc!$B$15 -> jeconkr.finance.HW.Derivatives2003.lib.ch23_srm.calculator.CalculatorSRM@Sun, 24 Jun 2018 13:30:40:445..7132322343992425990 | E6: Statistics | G6: Parameter | H6: time period
B7: Tree output parameters | H7: 0 | I7: =H7+1 -> 1 | J7: =I7+1 -> 2 | K7: 3 | L7: 4 | M7: =L7+1 -> 5
B8: Field key | C8: =tree!B32 -> path-stats | E8: mean | H8: =_xll.AC.stats.diffusionctrl.getTree(C6, C8, C9) -> 0 | I8: 0 | J8: 0 | K8: 0 | L8: 0 | M8: 0
B9: Parameters | C9: =tree!B46 -> java.util.LinkedHashMap@Sun, 24 Jun 2018 12:54:35:750..3412010573071285858 | E9: stdev | H9: 0 | I9: 0 | J9: 0 | K9: 0 | L9: 0 | M9: 0
E10: lower quartile | G10: =tree!C42 -> 0.25 | H10: 0 | I10: 0 | J10: 0 | K10: 0 | L10: 0 | M10: 0
B11: Q output parameters | E11: upper quartile | G11: =tree!C43 -> 0.75 | H11: 0 | I11: 0 | J11: 0 | K11: 0 | L11: 0 | M11: 0
B12: Q drift field parameter | C12: =tree!B33 -> Q-drift
B13: Q sigma field parameter | C13: =tree!B34 -> Q-sigma
E21: Interest rate transitional probability statistics
E23: Interest process drift parameter
H25: =tree!H8 -> time period | I25: =tree!I8 -> 0 | J25: =tree!J8 -> 0 | K25: =tree!K8 -> 0 | L25: =tree!L8 -> 0 | M25: =tree!M8 -> 0
E26: =tree!E9 -> # | H26: =tree!H9 -> 0 | I26: =tree!I9 -> 1 | J26: =tree!J9 -> 2 | K26: =tree!K9 -> 3 | L26: =tree!L9 -> 4 | M26: =tree!M9 -> 5
E27: =tree!E10 -> 1 | F27: =tree!F10 -> state | G27: =tree!G10 -> -0.09430133809 | H27: =_xll.AC.stats.diffusionctrl.getTree(C6, C12) -> 0 | I27: 0 | J27: 0 | K27: 0 | L27: 0
E28: =tree!E11 -> 2 | F28: =tree!F11 -> 0 | G28: =tree!G11 -> -0.06567056266 | H28: 0 | I28: 0 | J28: 0 | K28: 0 | L28: 0
E29: =tree!E12 -> 3 | F29: =tree!F12 -> 0 | G29: =tree!G12 -> -0.03703978723 | H29: 0 | I29: 0 | J29: 0 | K29: 0 | L29: 0
E30: =tree!E13 -> 4 | F30: =tree!F13 -> 0 | G30: =tree!G13 -> -0.008409011799 | H30: 0 | I30: 0 | J30: 0 | K30: 0 | L30: 0
E31: =tree!E14 -> 5 | F31: =tree!F14 -> 0 | G31: =tree!G14 -> 0.02022176363 | H31: 0 | I31: 0 | J31: 0 | K31: 0 | L31: 0
E32: =tree!E15 -> 6 | F32: =tree!F15 -> 0 | G32: =tree!G15 -> 0.04885253906 | H32: 0 | I32: 0 | J32: 0 | K32: 0 | L32: 0
E33: =tree!E16 -> 7 | F33: =tree!F16 -> 0 | G33: =tree!G16 -> 0.07748331449 | H33: 0 | I33: 0 | J33: 0 | K33: 0 | L33: 0
E34: =tree!E17 -> 8 | F34: =tree!F17 -> 0 | G34: =tree!G17 -> 0.1061140899 | H34: 0 | I34: 0 | J34: 0 | K34: 0 | L34: 0
E35: =tree!E18 -> 9 | F35: =tree!F18 -> 0 | G35: =tree!G18 -> 0.1347448654 | H35: 0 | I35: 0 | J35: 0 | K35: 0 | L35: 0
E36: =tree!E19 -> 10 | F36: =tree!F19 -> 0 | G36: =tree!G19 -> 0.1633756408 | H36: 0 | I36: 0 | J36: 0 | K36: 0 | L36: 0
E37: =tree!E20 -> 11 | F37: =tree!F20 -> 0 | G37: =tree!G20 -> 0.1920064162 | H37: 0 | I37: 0 | J37: 0 | K37: 0 | L37: 0
E38: =tree!E21 -> 12 | F38: =tree!F21 -> 0 | G38: =tree!G21 -> 0.2206371916 | H38: 0 | I38: 0 | J38: 0 | K38: 0 | L38: 0
E39: =tree!E22 -> 13 | F39: =tree!F22 -> 0 | G39: =tree!G22 -> 0.2492679671 | H39: 0 | I39: 0 | J39: 0 | K39: 0 | L39: 0
E41: Interest process volatility parameter
H43: =H25 -> time period | I43: 0 | J43: 0 | K43: 0 | L43: 0 | M43: 0
E44: =E26 -> # | H44: =H26 -> 0 | I44: 1 | J44: 2 | K44: 3 | L44: 4 | M44: 5
E45: =E27 -> 1 | F45: state | G45: -0.09430133809 | H45: =_xll.AC.stats.diffusionctrl.getTree(C6, C13) -> 0 | I45: 0 | J45: 0 | K45: 0 | L45: 0
E46: =E28 -> 2 | F46: 0 | G46: -0.06567056266 | H46: 0 | I46: 0 | J46: 0 | K46: 0 | L46: 0
E47: =E29 -> 3 | F47: 0 | G47: -0.03703978723 | H47: 0 | I47: 0 | J47: 0 | K47: 0 | L47: 0
E48: =E30 -> 4 | F48: 0 | G48: -0.008409011799 | H48: 0 | I48: 0 | J48: 0 | K48: 0 | L48: 0
E49: =E31 -> 5 | F49: 0 | G49: 0.02022176363 | H49: 0 | I49: 0 | J49: 0 | K49: 0 | L49: 0
E50: =E32 -> 6 | F50: 0 | G50: 0.04885253906 | H50: 0 | I50: 0 | J50: 0 | K50: 0 | L50: 0
E51: =E33 -> 7 | F51: 0 | G51: 0.07748331449 | H51: 0 | I51: 0 | J51: 0 | K51: 0 | L51: 0
E52: =E34 -> 8 | F52: 0 | G52: 0.1061140899 | H52: 0 | I52: 0 | J52: 0 | K52: 0 | L52: 0
E53: =E35 -> 9 | F53: 0 | G53: 0.1347448654 | H53: 0 | I53: 0 | J53: 0 | K53: 0 | L53: 0
E54: =E36 -> 10 | F54: 0 | G54: 0.1633756408 | H54: 0 | I54: 0 | J54: 0 | K54: 0 | L54: 0
E55: =E37 -> 11 | F55: 0 | G55: 0.1920064162 | H55: 0 | I55: 0 | J55: 0 | K55: 0 | L55: 0
E56: =E38 -> 12 | F56: 0 | G56: 0.2206371916 | H56: 0 | I56: 0 | J56: 0 | K56: 0 | L56: 0
E57: =E39 -> 13 | F57: 0 | G57: 0.2492679671 | H57: 0 | I57: 0 | J57: 0 | K57: 0 | L57: 0

Sheet cf
B2: TAB: BOND INTEREST AND PRINCIPAL PAYMENTS CASH FLOWS
B4: Bond cash flows inputs | G4: Bond cash flows output
B6: Parameter | C6: Value | E6: Description | G6: period | H6: principal outstanding | I6: principal paid | J6: interest accrued | K6: interest paid | L6: Total amount paid | M6: Redemption value
B7: first period | C7: 0 | G7: 0 | H7: =_xll.AC.data._get(B20, "", 0) -> 100 | I7: 0 | J7: 0 | K7: 0 | L7: 0 | M7: 100
B8: bond maturity period | C8: =C9 -> 5 | G8: =IF(G7="", "", IF(G7+1>$C$9, "", G7+1)) -> 1 | H8: 100 | I8: 0 | J8: 10 | K8: 10 | L8: 10 | M8: 113
B9: last period | C9: =bond!C13-1 -> 5 | E9: =bond!E10 -> Bond principal amount | G9: =IF(G8="", "", IF(G8+1>$C$9, "", G8+1)) -> 2 | H9: 100 | I9: 0 | J9: 10 | K9: 10 | L9: 10 | M9: 112
B10: =bond!B10 -> principal | C10: =bond!C10 -> 100 | E10: Coupon rate | G10: 3 | H10: 100 | I10: 0 | J10: 10 | K10: 10 | L10: 10 | M10: 111
B11: =bond!B11 -> coupon-rate | C11: =bond!C11 -> 0.05 | E11: Coupon payment frequency | G11: 4 | H11: 100 | I11: 0 | J11: 10 | K11: 10 | L11: 10 | M11: 111
B12: =bond!B12 -> coupon-frequency | C12: =bond!C12 -> 1 | G12: 5 | H12: 100 | I12: 100 | J12: 10 | K12: 10 | L12: 110 | M12: 111
B13: =bond!B9 -> dt | C13: =bond!C9 -> 2
B14: =bond!B18 -> interest deferral period | C14: =bond!C18 -> 0 | E14: Indicator of compounded interest
B15: =bond!B19 -> is compounded | C15: =bond!C19 -> 1 | E15: =bond!E28 -> Bond amortization schedule
B16: =bond!B28 -> amortization schedule | C16: =bond!C28 -> java.util.LinkedHashMap@Sun, 24 Jun 2018 12:54:35:752..6954858995633968606
B17: bond redemption premiums | C17: =bond!C42 -> java.util.LinkedHashMap@Sun, 24 Jun 2018 12:54:35:738..597428355098118818
B18: bond default redemption premium | C18: 0
B20: =_xll.AC.finance.cf.bond(C7, C8, C9, C10, C11, C12, C13, C14, C15, C16, C17, C18) -> java.util.LinkedHashMap@Sun, 24 Jun 2018 13:22:19:205..2304287379002258535
B23: bullet interest payment | C23: =C10*C11*C12*C13 -> 10
B24: Discount rate | C24: =1/(1+C11*C13) -> 0.9090909091
C25: =(C10+C23)*C24 -> 100

Sheet test
B2: TAB: TESTING CODE EXECUTION
B4: Parameter testing
B6: Testing mapping and list input parameters | E6: Testing function input parameters | K6: Testing backward recursion
B8: State mapping | E8: Probability transition function Q(x) | K8: Tested bond value function | U8: Discount rates
B10: key | C10: value | E10: # | F10: t | G10: y | H10: x | I10: FT(x) | K10: # | N10: 5 | O10: =N10-1 -> 4 | P10: =O10-1 -> 3 | Q10: 2 | R10: 1 | S10: 0 | U10: =O10 -> 4 | V10: =P10 -> 3 | W10: 2 | X10: 1 | Y10: 0
B11: =_xll.AC.data._get(inputs!C46, "", 1) -> java.lang.ClassCastException: java.lang.Double cannot be cast to java.util.Map | C11: java.lang.ClassCastException: java.lang.Double cannot be cast to java.util.Map | E11: 1 | F11: 0 | G11: 0 | H11: -2 | I11: =_xll.AC.math.F.eval(inputs!H27, F11:H17) ->  | K11: =calc!E10 -> 1 | L11: state | M11: =IF(calc!G10="", "", calc!G10) -> -0.09430133809 | N11: =IF(calc!M10="", "", calc!M10) -> -110 | O11: =IF(O29="", "", -O$25+U11*N11) ->  | U11: =IF(calc!V46="", "", calc!V46) -> 
B12: java.lang.ClassCastException: java.lang.Double cannot be cast to java.util.Map | C12: java.lang.ClassCastException: java.lang.Double cannot be cast to java.util.Map | E12: =E11+1 -> 2 | F12: 1 | G12: 0 | H12: =H11+1 -> -1 | K12: =calc!E11 -> 2 | M12: =IF(calc!G11="", "", calc!G11) -> -0.06567056266 | N12: =IF(calc!M11="", "", calc!M11) -> -110 | O12: =IF(O30="", "", -O$25+U12*N12) -> -135.4392391 | U12: =IF(calc!V47="", "", calc!V47) -> 1.14035672
B13: java.lang.ClassCastException: java.lang.Double cannot be cast to java.util.Map | C13: java.lang.ClassCastException: java.lang.Double cannot be cast to java.util.Map | E13: =E12+1 -> 3 | F13: 1 | G13: 0 | H13: 0 | K13: =calc!E12 -> 3 | M13: =IF(calc!G12="", "", calc!G12) -> -0.03703978723 | N13: =IF(calc!M12="", "", calc!M12) -> -110 | O13: =IF(O31="", "", -O$25+U13*N13) -> -128.4581745 | U13: =IF(calc!V48="", "", calc!V48) -> 1.076892495
B14: java.lang.ClassCastException: java.lang.Double cannot be cast to java.util.Map | C14: java.lang.ClassCastException: java.lang.Double cannot be cast to java.util.Map | E14: 4 | F14: 0 | G14: 0 | H14: 1 | K14: =calc!E13 -> 4 | M14: =IF(calc!G13="", "", calc!G13) -> -0.008409011799 | N14: =IF(calc!M13="", "", calc!M13) -> -110 | O14: -121.8656267 | U14: =IF(calc!V49="", "", calc!V49) -> 1.016960243
B15: java.lang.ClassCastException: java.lang.Double cannot be cast to java.util.Map | C15: java.lang.ClassCastException: java.lang.Double cannot be cast to java.util.Map | E15: 5 | F15: 0 | G15: 0 | H15: 2 | K15: =calc!E14 -> 5 | M15: =IF(calc!G14="", "", calc!G14) -> 0.02022176363 | N15: =IF(calc!M14="", "", calc!M14) -> -110 | O15: -115.6399737 | U15: =IF(calc!V50="", "", calc!V50) -> 0.9603633973
B16: java.lang.ClassCastException: java.lang.Double cannot be cast to java.util.Map | C16: java.lang.ClassCastException: java.lang.Double cannot be cast to java.util.Map | E16: 6 | F16: 0 | G16: 0 | H16: 3 | K16: =calc!E15 -> 6 | M16: =IF(calc!G15="", "", calc!G15) -> 0.04885253906 | N16: =IF(calc!M15="", "", calc!M15) -> -110 | O16: -109.7607967 | U16: =IF(calc!V51="", "", calc!V51) -> 0.9069163338
E17: 7 | F17: 0 | G17: 0 | H17: 4 | K17: =calc!E16 -> 7 | M17: =IF(calc!G16="", "", calc!G16) -> 0.07748331449 | N17: =IF(calc!M16="", "", calc!M16) -> -110 | O17: -104.2088133 | U17: =IF(calc!V52="", "", calc!V52) -> 0.8564437574
K18: =calc!E17 -> 8 | M18: =IF(calc!G17="", "", calc!G17) -> 0.1061140899 | N18: =IF(calc!M17="", "", calc!M17) -> -110 | O18: -98.96581421 | U18: =IF(calc!V53="", "", calc!V53) -> 0.8087801292
B19: Calculator methods list object | K19: =calc!E18 -> 9 | M19: =IF(calc!G18="", "", calc!G18) -> 0.1347448654 | N19: =IF(calc!M18="", "", calc!M18) -> -110 | O19: -94.01460351 | U19: =IF(calc!V54="", "", calc!V54) -> 0.7637691228
B20: =_xll.AC.data._get(inputs!C48, "", 1) -> value-option | K20: =calc!E19 -> 10 | M20: =IF(calc!G19="", "", calc!G19) -> 0.1633756408 | N20: =IF(calc!M19="", "", calc!M19) -> -110 | O20: -89.33894234 | U20: =IF(calc!V55="", "", calc!V55) -> 0.7212631121
K21: =calc!E20 -> 11 | M21: =IF(calc!G20="", "", calc!G20) -> 0.1920064162 | N21: =IF(calc!M20="", "", calc!M20) -> -110 | U21: =IF(calc!V56="", "", calc!V56) -> 
B22: Test of state uniform distribution | K22: =calc!E21 -> 12 | M22: =IF(calc!G21="", "", calc!G21) -> 0.2206371916 | N22: =IF(calc!M21="", "", calc!M21) ->  | U22: =IF(calc!V57="", "", calc!V57) -> 
K23: =calc!E22 -> 13 | M23: =IF(calc!G22="", "", calc!G22) -> 0.2492679671 | N23: =IF(calc!M22="", "", calc!M22) ->  | U23: =IF(calc!V58="", "", calc!V58) -> 
B24: State | C24: Change in state | E24: Parameter | F24: Value
B25: =tree!G10 -> -0.09430133809 | E25: Σ | F25: =inputs!C11*inputs!C9*SQRT(bond!C8) -> 0.001691818548 | K25: bond cash flow | N25: =OFFSET(cf!$L$7, N10, 0) -> 110 | O25: =OFFSET(cf!$L$7, O10, 0) -> 10 | P25: =OFFSET(cf!$L$7, P10, 0) -> 10 | Q25: =OFFSET(cf!$L$7, Q10, 0) -> 10 | R25: =OFFSET(cf!$L$7, R10, 0) -> 10 | S25: =OFFSET(cf!$L$7, S10, 0) -> 0
B26: =tree!G11 -> -0.06567056266 | C26: =IF(OR(B25="", B26=""), "", (B26-B25)) -> 0.02863077543 | E26: µT | F26: =inputs!C10*inputs!C9*bond!C8 -> 0 | K26: bond redemption value | N26: =OFFSET(cf!$M$7, N10, 0) -> 111 | O26: =OFFSET(cf!$M$7, O10, 0) -> 111 | P26: =OFFSET(cf!$M$7, P10, 0) -> 111 | Q26: =OFFSET(cf!$M$7, Q10, 0) -> 112 | R26: =OFFSET(cf!$M$7, R10, 0) -> 113 | S26: =OFFSET(cf!$M$7, S10, 0) -> 100 | U26: Difference between calculated and tested values
B27: =tree!G12 -> -0.03703978723 | C27: =IF(OR(B26="", B27=""), "", (B27-B26)) -> 0.02863077543 | E27: x0 | F27: =inputs!C9 -> 0.05
B28: =tree!G13 -> -0.008409011799 | C28: 0.02863077543 | E28: xmin | F28: =MAX(C13, F27-F25*inputs!C20) -> 0.04323272581 | K28: # | N28: 5 | O28: =N28-1 -> 4 | P28: =O28-1 -> 3 | Q28: 2 | R28: 1 | S28: 0 | U28: =O28 -> 4 | V28: =P28 -> 3 | W28: =Q28 -> 2 | X28: =R28 -> 1 | Y28: =S28 -> 0
B29: =tree!G14 -> 0.02022176363 | C29: 0.02863077543 | E29: xmax | F29: =MIN(C14, F27+F25*inputs!C21) -> 0.06184272984 | K29: =K11 -> 1 | L29: state | M29: =M11 -> -0.09430133809 | N29: =N11 -> -110 | O29: =IF(calc!L10="", "", calc!L10) ->  | U29: =IF(O11="", "", MAX(-O$26, O11)-O29) ->  | V29: =IF(P11="", "", P11-P29) -> 
B30: =tree!G15 -> 0.04885253906 | C30: 0.02863077543 | K30: =K12 -> 2 | M30: =M12 -> -0.06567056266 | N30: =N12 -> -110 | O30: =IF(calc!L11="", "", calc!L11) -> -111 | U30: =IF(O12="", "", MAX(-O$26, O12)-O30) -> 0 | V30: =IF(P12="", "", P12-P30) -> 
B31: =tree!G16 -> 0.07748331449 | C31: 0.02863077543 | K31: 3 | M31: -0.03703978723 | N31: -110 | O31: =IF(calc!L12="", "", calc!L12) -> -111 | U31: 0 | V31: =IF(P13="", "", P13-P31) -> 
B32: =tree!G17 -> 0.1061140899 | C32: 0.02863077543 | K32: 4 | M32: -0.008409011799 | N32: -110 | O32: =IF(calc!L13="", "", calc!L13) -> -111 | U32: 0 | V32: =IF(P14="", "", P14-P32) -> 
B33: =tree!G18 -> 0.1347448654 | C33: 0.02863077543 | K33: 5 | M33: 0.02022176363 | N33: -110 | O33: =IF(calc!L14="", "", calc!L14) -> -111 | U33: 0 | V33: =IF(P15="", "", P15-P33) -> 
B34: =tree!G19 -> 0.1633756408 | C34: 0.02863077543 | K34: 6 | M34: 0.04885253906 | N34: -110 | O34: =IF(calc!L15="", "", calc!L15) -> -109.7607967 | U34: 0 | V34: =IF(P16="", "", P16-P34) -> 
B35: =tree!G20 -> 0.1920064162 | C35: 0.02863077543 | K35: 7 | M35: 0.07748331449 | N35: -110 | O35: =IF(calc!L16="", "", calc!L16) -> -104.2088133 | U35: 1.421085472e-14 | V35: =IF(P17="", "", P17-P35) -> 
B36: =tree!G21 -> 0.2206371916 | C36: =IF(OR(B35="", B36=""), "", (B36-B35)/B35) -> 0.149113639 | K36: 8 | M36: 0.1061140899 | N36: -110 | O36: =IF(calc!L17="", "", calc!L17) -> -98.96581421 | U36: 0 | V36: =IF(P18="", "", P18-P36) -> 
B37: =tree!G22 -> 0.2492679671 | C37: 0.1297640494 | K37: 9 | M37: 0.1347448654 | N37: -110 | O37: =IF(calc!L18="", "", calc!L18) -> -94.01460351 | U37: 0 | V37: =IF(P19="", "", P19-P37) -> 
K38: 10 | M38: 0.1633756408 | N38: -110 | O38: =IF(calc!L19="", "", calc!L19) -> -89.33894234 | U38: 0 | V38: =IF(P20="", "", P20-P38) -> 
K39: 11 | M39: 0.1920064162 | N39: -110 | O39: =IF(calc!L20="", "", calc!L20) ->  | V39: =IF(P21="", "", P21-P39) -> 
K40: 12 | M40: 0.2206371916 | O40: =IF(calc!L21="", "", calc!L21) ->  | V40: =IF(P22="", "", P22-P40) -> 
K41: 13 | M41: 0.2492679671 | O41: =IF(calc!L22="", "", calc!L22) ->  | V41: =IF(P23="", "", P23-P41) -> 
K43: dt | L43: =bond!C9 -> 2
K45: # | U45: =U10 -> 4 | V45: =V10 -> 3 | W45: 2 | X45: 1 | Y45: 0
K46: =K29 -> 1 | L46: state | M46: =M29 -> -0.09430133809 | U46: =IF(U11="", "", 1/(1+$M46*$L$43)) ->  | V46: =IF(V11="", "", 1/(1+$M46*$L$43)) -> 
K47: =K30 -> 2 | M47: =M30 -> -0.06567056266 | U47: =IF(U12="", "", 1/(1+$M47*$L$43)) -> 1.151199889
K48: 3 | M48: -0.03703978723 | U48: =IF(U13="", "", 1/(1+$M48*$L$43)) -> 1.080006416
K49: 4 | M49: -0.008409011799 | U49: =IF(U14="", "", 1/(1+$M49*$L$43)) -> 1.017105708
K50: 5 | M50: 0.02022176363 | U50: =IF(U15="", "", 1/(1+$M50*$L$43)) -> 0.9611285705
K51: 6 | M51: 0.04885253906 | U51: =IF(U16="", "", 1/(1+$M51*$L$43)) -> 0.9109915039
K52: 7 | M52: 0.07748331449 | U52: =IF(U17="", "", 1/(1+$M52*$L$43)) -> 0.8658258818
K53: 8 | M53: 0.1061140899 | U53: =IF(U18="", "", 1/(1+$M53*$L$43)) -> 0.8249272015
K54: 9 | M54: 0.1347448654 | U54: =IF(U19="", "", 1/(1+$M54*$L$43)) -> 0.7877180696
K55: 10 | M55: 0.1633756408 | U55: =IF(U20="", "", 1/(1+$M55*$L$43)) -> 0.7537207719
K56: 11 | M56: 0.1920064162 | U56: =IF(U21="", "", 1/(1+$M56*$L$43)) -> 
K57: 12 | M57: 0.2206371916 | U57: =IF(U22="", "", 1/(1+$M57*$L$43)) -> 
K58: 13 | M58: 0.2492679671 | U58: =IF(U23="", "", 1/(1+$M58*$L$43)) -> 

Sheet config
B2: TAB: CONFIGURATION FILE | C2: Calculation enabled | E2: TRUE
B4: Test connection | C4: =_xll.AC.test.connection() -> host: home-pc; user: Konstantin Rybakov; key: null
B6: Output array sizes
B8: Maximum size
B10: Object | C10: number of rows | D10: number of cols
B11: Tree dimension | C11: 13 | D11: 6
B12: Transition probabilities | C12: 12 | D12: 7
B14: =bond!B8 -> T | C14: =bond!C8 -> 10
B15: =bond!B9 -> dt | C15: =bond!C9 -> 2
B16: nT | C16: =bond!C13 -> 6
B17: =inputs!B24 -> X-count | C17: =inputs!C24 -> 13
B19: Array formula cell address | C19: number of rows | D19: number of cols | E19: Description
B20: =addressFla(tree!H10) -> 'tree'!$H$10 | C20: =MIN(C11, C17) -> 13 | D20: =MIN(D11, C16) -> 6 | E20: Tree states
B21: =addressFla(tree!G10) -> 'tree'!$G$10 | C21: =C20 -> 13 | D21: 1 | E21: Tree list of states
B22: =addressFla(tree!R10) -> 'tree'!$R$10 | C22: =MIN(C11, C17) -> 13 | D22: =MIN(D11, C16) -> 6 | E22: Tree probabilities
B23: =addressFla(tree!G28) -> 'tree'!$G$28 | C23: =MIN(C12, COUNTIF(OFFSET(INDIRECT($B$20), 0, tree!$C$38+1, $C$20, 1), ">=0") + 1) -> 6 | D23: =MIN(D12, COUNTIF(OFFSET(INDIRECT($B$20), 0, tree!$C$38, $C$20, 1), ">=0") + 1) -> 5 | E23: Transition probabilities
B24: =addressFla(calc!H10) -> 'calc'!$H$10 | C24: =C20 -> 13 | D24: =D20 -> 6 | E24: Option value function
B25: =addressFla(calc!R10) -> 'calc'!$R$10 | C25: =C24 -> 13 | D25: =D24 -> 6 | E25: Option exercise action value
B26: =addressFla(yield!H8) -> 'yield'!$H$8 | C26: =C20 -> 13 | D26: =D20-1 -> 5 | E26: Yields
B27: =addressFla(yield!H26) -> 'yield'!$H$26 | C27: =C20 -> 13 | D27: =D20-1 -> 5 | E27: Bullet yields
B28: =addressFla(calc!H46) -> 'calc'!$H$46 | C28: =C24 -> 13 | D28: =D24 -> 6 | E28: Asset cash flows
B29: =addressFla(calc!R46) -> 'calc'!$R$46 | C29: =C24 -> 13 | D29: =D24-1 -> 5 | E29: Discount function
B30: =addressFla(stats!H8) -> 'stats'!$H$8 | C30: 4 | D30: =D20 -> 6 | E30: Interest tree statistics (mean, stdev, lower and upper quartiles)
B31: =addressFla(stats!H27) -> 'stats'!$H$27 | C31: =C20 -> 13 | D31: =D20-1 -> 5 | E31: Interest tree drift parameters
B32: =addressFla(stats!H45) -> 'stats'!$H$45 | C32: =C20 -> 13 | D32: =D20-1 -> 5 | E32: Interest tree volatility parameter
B33: =addressFla(cf!H7) -> 'cf'!$H$7 | C33: =bond!C13 -> 6 | D33: 6 | E33: Bond cash flows

Sheet guide
B2: Package: SRM Interest rate process modelling The objective of the model is to analyze fixed income securities, specifically bonds. The template allows to set generic parameters for the interest rate tree but generally assumes specific inputs for the calculated bond prices and related interest rate options. Modelling bond prices The bond prices are modelled as follows: 1. The bond terminal value. The terminal value is generally assumed to be equal to the sum of the outstanding principal value and the accrued interest. The outstanding principal value depends on the (i) time period; (ii) applied amortization schedule; (iii) and exercised options. The accrued interest depends on the (i) time period; (ii) interest payment schedule; and (iii) outstanding balances used as a base for interest calculations. 2. The bond coupon payments. The bond coupon payments depend on time period and interest payment terms. Fixed interest payments are assumed (will be extended to variable interest rate). 3. Redemption price. The redemption price models the penalty that is applied in the case of bond option exercise. Generally, both call (early prepayment) and put (pay-on-demand) options nvolve a penalty that determines the bond redemption price. 4. Amortization schedule. The schedule determines the timing of bond principal repayments. Based on the amortization schedule, the outstanding principal balances are calculated. | K2: Package: SRM Note: to resize the output arrays, press Ctrl+R Markov tree objects and output IMarkovTreeR1 tree = Markov.tree(int T, double x0, Map states, Object Q); Construct Markov tree object using the following paarmeters: T - number of periods x0 - initial state, states - Map: X-min - minimum state value, X-max - maximum state value; X-count - number of states; and X-type which is set either to uniform or log-uniform to describe how the states are generated within the range; Q - object that describes transition probabilities (typically in the form of a function: (t, x) => {xi => pi} that mapps given period and state (t, x) into a mapping {xi => pi} between next period states and probabilities; Object[][] out = Markov.get(IMarkovTreeR1 tree, String key, Map<String, Object> params); Return the value of a given field (referred to bya given key) of the Markov tree using the given set of parameters (if necessary). Keys include: state-values - an array[][] that describes tree structure (contains a state value in a given cell if the cell belong to the tree or zero otherwise); Q - returns an array of transition probabilities Q(xt, xt+1) for a given period t; P - return an array of tree state probabilites
